bitfinex/quotes_BTCUSD_20230115
["timestamp","ask_amount","ask_price","bid_price","bid_amount"]
[1673750340954,0.44568051,20716.0,20712.0,0.35695381]
[1673750341214,0.09,20715.0,20712.0,0.54767976]
[1673750341489,0.09,20715.0,20712.0,0.35695381]
[1673750341758,0.44568051,20716.0,20712.0,0.35695381]
[1673750342017,0.35606538,20715.0,20712.0,0.35695381]
[1673750342280,0.44606538,20715.0,20712.0,0.35695381]
[1673750343098,0.09,20715.0,20712.0,0.35695381]
[1673750343363,0.96235513,20717.0,20712.0,0.35695381]
[1673750343636,0.09,20716.0,20713.0,0.19072595]
[1673750343897,1.003624,20720.0,20714.0,1.15625595]
[1673750343898,0.48121213,20720.0,20714.0,1.15625595]
[1673750344170,0.41319317,20720.0,20715.0,0.26972595]
[1673750344425,0.41319317,20720.0,20716.0,0.19072595]
[1673750345469,0.35256998,20719.0,20715.0,0.561731]
[1673750345966,0.04970111,20718.0,20715.0,0.35946355]
[1673750345972,1.05839899,20719.0,20715.0,0.35946355]
[1673750346238,1.00869788,20719.0,20717.0,0.45981787]
[1673750346482,0.93019788,20719.0,20717.0,0.45981787]
[1673750346738,1.02119788,20719.0,20717.0,0.45981787]
[1673750347512,1.02119788,20719.0,20715.0,0.19072595]
[1673750347760,0.12870111,20718.0,20713.0,0.49138139]
[1673750348033,0.40584503,20717.0,20713.0,0.49138139]
[1673750348311,0.04970111,20716.0,20713.0,0.49138139]
[1673750348846,0.53243611,20716.0,20711.0,0.49547344]
[1673750349103,0.12830111,20715.0,20711.0,0.02082398]
[1673750349385,0.079,20713.0,20711.0,0.02082398]
[1673750349648,0.079,20712.0,20711.0,0.02082398]
[1673750349899,1.044622,20712.0,20711.0,0.02082398]
[1673750350700,1.2408851,20712.0,20711.0,0.02082398]
[1673750351057,1.83004148,20712.0,20711.0,0.01082398]
[1673750351319,2.20604828,20712.0,20711.0,0.01082398]
[1673750351554,2.47724317,20712.0,20711.0,0.01082398]
[1673750352423,1.93021969,20712.0,20711.0,0.01082398]
[1673750352639,1.93021969,20712.0,20710.0,0.74531189]
[1673750352640,0.1,20711.0,20710.0,0.74531189]
[1673750352881,2.03984269,20711.0,20710.0,0.74531189]
[1673750353106,0.1,20710.0,20708.0,0.35929914]
[1673750353319,3.03988069,20709.0,20706.0,0.45286783]
[1673750353561,1.4407088,20708.0,20706.0,0.45286783]
[1673750353766,1.26230769,20707.0,20706.0,0.45286783]
[1673750354025,3.01109169,20707.0,20706.0,0.45286783]
[1673750354236,3.45473911,20707.0,20706.0,0.02125162]
[1673750354675,3.50444022,20707.0,20706.0,5.162e-05]
[1673750354912,3.50444022,20707.0,20706.0,0.19077757]
[1673750354913,2.33279169,20707.0,20706.0,0.19077757]
[1673750355125,0.319306,20707.0,20706.0,0.19077757]
[1673750355350,0.69774252,20709.0,20706.0,5.162e-05]
[1673750355800,0.42833062,20708.0,20706.0,5.162e-05]
[1673750356029,0.212171,20707.0,20706.0,5.162e-05]
[1673750356285,0.391171,20707.0,20706.0,5.162e-05]
[1673750356503,1.01727011,20707.0,20706.0,5.162e-05]
[1673750356721,1.02577011,20707.0,20706.0,5.162e-05]
[1673750356938,0.87687269,20707.0,20706.0,5.162e-05]
[1673750357604,0.77687269,20707.0,20706.0,5.162e-05]
[1673750358477,0.65570169,20707.0,20706.0,5.162e-05]
[1673750358838,0.88563669,20707.0,20706.0,5.162e-05]
[1673750359058,1.05641309,20707.0,20706.0,5.162e-05]
[1673750359329,1.23972905,20707.0,20706.0,5.162e-05]
[1673750359604,2.34842065,20707.0,20705.0,0.01877294]
[1673750359867,1.55577269,20706.0,20705.0,0.01877294]
[1673750360127,1.85667269,20706.0,20705.0,0.01877294]
[1673750360402,3.13493156,20706.0,20705.0,0.01877294]
[1673750360962,3.13493156,20706.0,20705.0,7.294e-05]
[1673750361259,0.1,20705.0,20702.0,0.00123704]
[1673750361515,0.18474,20703.0,20702.0,0.00123704]
[1673750361793,1.8236138,20703.0,20702.0,0.00123704]
[1673750362052,2.26543369,20703.0,20702.0,0.00123704]
[1673750362581,0.1,20702.0,20700.0,0.001]
[1673750362831,0.320935,20701.0,20700.0,0.26728595]
[1673750363120,0.483021,20703.0,20701.0,0.0267286]
[1673750363373,0.574021,20703.0,20700.0,0.001]
[1673750363643,0.562021,20703.0,20700.0,0.001]
[1673750363904,0.562021,20703.0,20700.0,0.02364444]
[1673750363905,0.091,20701.0,20700.0,0.02364444]
[1673750364706,0.091,20701.0,20700.0,0.07827228]
[1673750364964,0.78220275,20708.0,20701.0,0.3602791]
[1673750364965,0.08597016,20705.0,20701.0,0.3602791]
[1673750365405,0.082,20703.0,20702.0,0.49072595]
[1673750365406,0.082,20703.0,20702.0,0.56972595]
[1673750365643,0.29479436,20709.0,20702.0,0.15173982]
[1673750365869,0.21486152,20709.0,20703.0,0.49072595]
[1673750366101,0.005,20705.0,20704.0,1.15668395]
[1673750366328,0.04970111,20705.0,20704.0,0.482979]
[1673750366833,0.30902178,20709.0,20704.0,0.5795814]
[1673750366835,0.30902178,20709.0,20704.0,0.782979]
[1673750367099,0.30902178,20709.0,20705.0,0.19072595]
[1673750367621,0.21486152,20709.0,20706.0,0.48295]
[1673750367882,0.21486152,20709.0,20706.0,0.67367595]
[1673750368149,0.21486152,20709.0,20706.0,0.48295]
[1673750368678,0.21486152,20709.0,20706.0,0.56145]
[1673750368952,0.14283928,20711.0,20706.0,0.56145]
[1673750368953,0.14283928,20711.0,20708.0,0.0787]
[1673750369227,0.14283928,20711.0,20710.0,0.079]
[1673750369487,0.14283928,20711.0,20710.0,0.26972595]
[1673750369757,0.14283928,20711.0,20710.0,0.079]
[1673750370266,0.14283928,20711.0,20710.0,0.479]
[1673750371556,0.19283928,20711.0,20710.0,0.002]
[1673750371882,0.11783928,20711.0,20709.0,1.31030694]
[1673750372082,0.15183928,20711.0,20710.0,0.002]
[1673750372339,0.15183928,20711.0,20710.0,0.32427055]
[1673750373888,0.11783928,20711.0,20710.0,0.32227055]
[1673750374148,0.005,20711.0,20710.0,0.32227055]
[1673750374442,0.18770343,20711.0,20710.0,0.002]
[1673750375436,0.12970111,20711.0,20710.0,0.002]
[1673750375693,0.99241932,20711.0,20710.0,0.002]
[1673750377008,0.67148432,20711.0,20710.0,0.002]
[1673750377256,0.99241932,20711.0,20710.0,0.002]
[1673750377521,0.18864932,20711.0,20710.0,0.002]
[1673750380073,0.08,20711.0,20710.0,0.07756]
[1673750380320,0.08,20711.0,20710.0,0.40950386]
[1673750380845,0.08,20711.0,20710.0,0.60022981]
[1673750381085,0.08,20711.0,20710.0,1.07106186]
[1673750381346,0.08,20711.0,20710.0,1.02444162]
[1673750381582,0.08,20711.0,20710.0,0.92444162]
[1673750382164,0.08,20711.0,20710.0,0.85526892]
[1673750382330,0.08,20711.0,20710.0,0.92788333]
[1673750382800,0.08,20711.0,20710.0,0.85232333]
[1673750383050,0.08,20711.0,20710.0,0.39211501]
[1673750383313,0.08,20711.0,20710.0,0.02464968]
[1673750383564,0.17747875,20711.0,20710.0,0.02464968]
[1673750384845,0.66031375,20711.0,20710.0,0.02464968]
[1673750385111,0.74931375,20711.0,20710.0,0.02464968]
[1673750385364,0.58031375,20711.0,20710.0,0.02264968]
[1673750385867,0.58031375,20711.0,20707.0,0.28754971]
[1673750386127,0.63001486,20711.0,20707.0,0.28754971]
[1673750386638,0.79747865,20711.0,20707.0,0.28754971]
[1673750387392,0.10282996,20710.0,20707.0,0.28754971]
[1673750387642,0.965762,20709.0,20707.0,0.28754971]
[1673750388895,1.053762,20709.0,20707.0,0.28754971]
[1673750389148,1.053762,20709.0,20706.0,0.41071469]
[1673750389411,1.10346311,20709.0,20706.0,0.33181469]
[1673750389659,1.053762,20709.0,20706.0,0.33181469]
[1673750390170,0.10421146,20710.0,20707.0,0.19072595]
[1673750390429,0.025,20709.0,20708.0,0.19072595]
[1673750390684,0.08586695,20711.0,20708.0,0.079]
[1673750390973,0.089,20709.0,20708.0,0.19072595]
[1673750391235,0.08586695,20711.0,20708.0,0.0787]
[1673750391498,0.09,20709.0,20707.0,1.402037]
[1673750391742,0.09,20709.0,20708.0,0.0784]
[1673750392310,0.09,20709.0,20708.0,0.75203095]
[1673750392521,0.09,20709.0,20708.0,0.940305]
[1673750392796,0.09,20709.0,20708.0,1.22042259]
[1673750393301,0.15179426,20714.0,20708.0,1.22042259]
[1673750393590,0.082,20711.0,20709.0,0.56912595]
[1673750393868,0.00323237,20716.0,20710.0,1.781424]
[1673750394124,0.11108086,20716.0,20714.0,0.079]
[1673750394374,0.11108086,20716.0,20715.0,0.67346695]
[1673750394643,0.11108086,20716.0,20715.0,0.482741]
[1673750395089,0.01123237,20716.0,20715.0,0.482741]
[1673750395341,0.01123237,20716.0,20715.0,0.77486159]
[1673750395594,0.01123237,20716.0,20715.0,0.29212059]
[1673750396379,0.09323237,20716.0,20715.0,0.29312059]
[1673750396652,0.09323237,20716.0,20715.0,0.001]
[1673750396890,0.18021089,20716.0,20715.0,0.001]
[1673750398673,0.67142889,20716.0,20715.0,0.001]
[1673750399704,0.99236389,20716.0,20715.0,0.001]
[1673750400452,0.67142889,20716.0,20715.0,0.001]
[1673750400708,0.18871089,20716.0,20715.0,0.07656]
[1673750401212,0.18871089,20716.0,20715.0,0.001]
[1673750403558,2.46435318,20716.0,20715.0,0.001]
[1673750403872,2.78528818,20716.0,20715.0,0.001]
[1673750404075,3.19978708,20716.0,20715.0,0.001]
[1673750404354,3.88592463,20716.0,20703.0,0.29866389]
[1673750404594,0.02674,20710.0,20703.0,0.49529602]
[1673750404853,0.482907,20708.0,20704.0,0.4122364]
[1673750405105,0.04470112,20707.0,20704.0,0.38237001]
[1673750405379,0.04470112,20706.0,20701.0,0.73910573]
[1673750405638,0.04470112,20705.0,20702.0,0.3383171]
[1673750405893,0.04470112,20705.0,20703.0,0.30568149]
[1673750406156,0.08921815,20706.0,20702.0,0.1]
[1673750406415,0.13391927,20706.0,20702.0,0.36150578]
[1673750406666,0.14391927,20706.0,20703.0,0.38069198]
[1673750406940,0.08921815,20706.0,20703.0,0.38069198]
[1673750407189,0.026,20705.0,20704.0,0.23879515]
[1673750407440,0.026,20705.0,20704.0,1.15239315]
[1673750407694,0.026,20705.0,20704.0,0.6616672]
[1673750407959,0.07070112,20705.0,20704.0,0.26054116]
[1673750408214,0.27032319,20708.0,20704.0,0.34215235]
[1673750408475,0.007,20706.0,20704.0,0.34215235]
[1673750408728,0.10275319,20708.0,20704.0,0.34198461]
[1673750408981,0.10275319,20708.0,20704.0,0.53271056]
[1673750409248,0.10275319,20708.0,20704.0,0.19072595]
[1673750409517,0.19275319,20708.0,20704.0,0.53292924]
[1673750409758,0.10275319,20708.0,20704.0,0.53292924]
[1673750410011,0.10275319,20708.0,20704.0,1.01592424]
[1673750410265,0.19275319,20708.0,20704.0,0.82519829]
[1673750410531,1.265739,20710.0,20704.0,0.82519829]
[1673750410532,0.09979733,20707.0,20704.0,0.82519829]
[1673750410788,0.09979733,20707.0,20705.0,0.37585928]
[1673750412587,0.19079733,20707.0,20705.0,0.37585928]
[1673750413073,0.19079733,20707.0,20704.0,0.482995]
[1673750413347,0.091,20707.0,20705.0,0.34748027]
[1673750413602,0.091,20707.0,20706.0,0.965902]
[1673750414126,0.091,20707.0,20706.0,1.35187975]
[1673750414876,0.10556779,20709.0,20706.0,1.35187975]
[1673750415143,0.083,20707.0,20706.0,1.35187975]
[1673750415396,0.08416835,20711.0,20706.0,0.965902]
[1673750415654,0.03,20707.0,20706.0,0.966902]
[1673750415879,0.08416835,20711.0,20706.0,0.965902]
[1673750416183,0.03,20709.0,20707.0,0.40054752]
[1673750416448,0.03,20709.0,20707.0,0.1]
[1673750416735,0.03,20709.0,20708.0,0.96581]
[1673750417732,0.006,20711.0,20708.0,0.96581]
[1673750418046,0.1096176,20713.0,20708.0,1.15653595]
[1673750418262,0.0085,20712.0,20709.0,0.53631965]
[1673750418516,0.0085,20712.0,20709.0,0.8284737]
[1673750419289,0.0915,20712.0,20709.0,0.8294737]
[1673750420642,0.0915,20712.0,20710.0,0.32032595]
[1673750420643,0.083,20712.0,20710.0,0.32032595]
[1673750420859,0.083,20712.0,20711.0,1.96284663]
[1673750421124,0.083,20712.0,20711.0,1.978805]
[1673750421380,0.083,20712.0,20711.0,2.07124458]
[1673750421651,0.07788592,20714.0,20711.0,1.84094458]
[1673750421911,0.005,20712.0,20711.0,1.84094458]
[1673750422413,0.039,20712.0,20711.0,1.84294458]
[1673750422664,0.08853157,20716.0,20711.0,1.84094458]
[1673750422937,0.034,20714.0,20712.0,0.19072595]
[1673750423284,0.08853157,20716.0,20713.0,0.482783]
[1673750423465,0.00323237,20716.0,20714.0,0.19072595]
[1673750423772,0.00323237,20716.0,20714.0,0.5515329]
[1673750424004,0.00323237,20716.0,20714.0,0.80367795]
[1673750424256,0.00323237,20716.0,20714.0,0.94973066]
[1673750424513,0.00323237,20716.0,20714.0,1.04973066]
[1673750424780,0.03723237,20716.0,20714.0,1.04973066]
[1673750425025,0.00323237,20716.0,20714.0,0.712952]
[1673750425289,0.00323237,20716.0,20715.0,0.1]
[1673750425548,0.07023237,20716.0,20714.0,0.92954641]
[1673750425820,0.00323237,20716.0,20715.0,0.482741]
[1673750426084,0.00723237,20716.0,20715.0,0.482741]
[1673750426341,0.00723237,20716.0,20715.0,0.79297635]
[1673750426591,0.04623237,20716.0,20715.0,0.585741]
[1673750426853,0.04623237,20716.0,20715.0,0.96604029]
[1673750427133,0.04623237,20716.0,20715.0,0.846041]
[1673750427391,0.04623237,20716.0,20715.0,1.146041]
[1673750428152,0.04623237,20716.0,20715.0,1.799741]
[1673750428479,0.02610161,20716.0,20715.0,1.015441]
[1673750428675,0.02610161,20716.0,20715.0,0.485741]
[1673750428941,0.00366047,20720.0,20715.0,0.87325969]
[1673750429209,0.006,20716.0,20715.0,1.08798564]
[1673750429474,0.08813408,20719.0,20715.0,0.87325969]
[1673750429765,0.006,20716.0,20715.0,0.506741]
[1673750429978,0.1094518,20720.0,20715.0,0.87259071]
[1673750430237,0.10612857,20718.0,20715.0,0.84328113]
[1673750430487,0.15082969,20718.0,20715.0,0.36054013]
[1673750430743,0.10612857,20718.0,20715.0,0.36054013]
[1673750431277,0.10612857,20718.0,20716.0,0.3864292]
[1673750431546,0.00766047,20720.0,20716.0,0.3864292]
[1673750431791,0.0085,20719.0,20717.0,0.22654918]
[1673750432049,0.0085,20719.0,20717.0,0.23176887]
[1673750432304,0.0105,20719.0,20717.0,0.04104292]
[1673750432554,0.0085,20719.0,20717.0,0.04104292]
[1673750432809,0.0837544,20720.0,20717.0,0.04104292]
[1673750433059,0.1077544,20720.0,20717.0,0.52372892]
[1673750433315,0.0837544,20720.0,20717.0,0.482686]
[1673750433572,0.028,20719.0,20717.0,0.487686]
[1673750433823,0.028,20719.0,20718.0,0.36017704]
[1673750434074,0.028,20719.0,20718.0,0.84284904]
[1673750435625,0.00366047,20720.0,20718.0,0.84284904]
[1673750435882,0.05066047,20720.0,20718.0,0.84284904]
[1673750436390,0.00366047,20720.0,20719.0,0.31834345]
[1673750436651,0.00366047,20720.0,20719.0,0.67337395]
[1673750436907,0.00366047,20720.0,20719.0,0.93327395]
[1673750437163,0.00366047,20720.0,20719.0,0.742548]
[1673750437164,0.04766047,20720.0,20719.0,0.742548]
[1673750437416,0.04766047,20720.0,20719.0,1.05349588]
[1673750437685,0.09758128,20720.0,20719.0,0.31335577]
[1673750437937,0.09758128,20720.0,20718.0,0.486656]
[1673750437938,0.04766047,20720.0,20718.0,0.486656]
[1673750438201,0.04766047,20720.0,20718.0,0.48425315]
[1673750438751,0.04766047,20720.0,20719.0,0.34749382]
[1673750438966,0.00366047,20720.0,20719.0,0.34749382]
[1673750439213,0.04766047,20720.0,20719.0,0.83414182]
[1673750440243,0.04766047,20720.0,20719.0,0.486648]
[1673750440554,0.04766047,20720.0,20719.0,0.886648]
[1673750440791,0.04766047,20720.0,20719.0,0.586648]
[1673750441306,0.04766047,20720.0,20719.0,0.96249074]
[1673750441557,0.04766047,20720.0,20719.0,0.586648]
[1673750442080,0.00366047,20720.0,20719.0,0.482648]
[1673750442346,0.03866047,20720.0,20719.0,0.85892501]
[1673750442649,0.00366047,20720.0,20719.0,0.482648]
[1673750442870,0.03866047,20720.0,20719.0,0.86523018]
[1673750443621,0.03866047,20720.0,20719.0,0.485648]
[1673750443879,0.03866047,20720.0,20719.0,0.84105408]
[1673750444132,0.03866047,20720.0,20719.0,0.485648]
[1673750444380,0.03866047,20720.0,20719.0,0.585648]
[1673750444935,0.03866047,20720.0,20719.0,0.715848]
[1673750445187,0.03866047,20720.0,20719.0,1.015848]
[1673750445942,0.03866047,20720.0,20719.0,1.146048]
[1673750446969,0.03866047,20720.0,20719.0,1.0639456]
[1673750447281,0.08858128,20720.0,20719.0,0.8035456]
[1673750447520,0.03866047,20720.0,20719.0,0.8035456]
[1673750448504,0.03866047,20720.0,20719.0,0.3208976]
[1673750450320,0.03866047,20720.0,20719.0,0.40125616]
[1673750451093,0.03866047,20720.0,20719.0,0.08335856]
[1673750451350,0.03866047,20720.0,20719.0,0.885648]
[1673750451855,0.03866047,20720.0,20719.0,1.016248]
[1673750452106,0.03866047,20720.0,20719.0,1.146848]
[1673750452930,0.0220303,20727.0,20720.0,0.11209475]
[1673750453177,0.0220303,20727.0,20723.0,0.0785]
[1673750453445,0.0220303,20727.0,20724.0,0.67325295]
[1673750454186,0.0085,20726.0,20724.0,0.67325295]
[1673750454449,0.0085,20726.0,20724.0,0.482527]
[1673750454708,0.0085,20727.0,20725.0,0.37909064]
[1673750454920,0.0085,20727.0,20725.0,0.89677182]
[1673750455226,0.03434461,20727.0,20725.0,0.89677182]
[1673750455473,0.0785,20726.0,20725.0,0.03517618]
[1673750456010,0.0785,20726.0,20725.0,0.04217618]
[1673750456258,0.0785,20726.0,20725.0,0.03517618]
[1673750456259,0.399435,20726.0,20725.0,0.03517618]
[1673750456516,0.399435,20726.0,20725.0,0.04217618]
[1673750456517,0.407435,20726.0,20725.0,0.04217618]
[1673750457026,0.88992,20726.0,20725.0,0.04217618]
[1673750457282,0.008,20726.0,20725.0,0.04217618]
[1673750457594,0.0165,20726.0,20725.0,0.04217618]
[1673750457843,0.89902,20726.0,20725.0,0.04217618]
[1673750458616,1.34232639,20726.0,20725.0,0.04217618]
[1673750459466,1.55728597,20726.0,20725.0,0.04217618]
[1673750460420,1.62893917,20726.0,20725.0,0.04217618]
[1673750460671,2.01237043,20726.0,20725.0,0.04217618]
[1673750460932,1.48563278,20726.0,20725.0,0.04217618]
[1673750461191,0.06290082,20723.0,20720.0,0.01209475]
[1673750461438,0.30187141,20721.0,20720.0,0.01209475]
[1673750461713,1.01185781,20721.0,20716.0,0.38972305]
[1673750462015,0.05842081,20720.0,20719.0,0.32123014]
[1673750462244,0.0085,20720.0,20717.0,0.0389723]
[1673750462519,0.05842081,20720.0,20718.0,0.38092091]
[1673750462747,0.05842081,20720.0,20718.0,0.42291023]
[1673750462748,0.0085,20720.0,20718.0,0.42291023]
[1673750463010,0.0085,20720.0,20717.0,0.0389723]
[1673750463011,0.02714215,20720.0,20717.0,0.0389723]
[1673750463263,0.63889696,20720.0,20716.0,0.33962123]
[1673750463516,0.72889696,20720.0,20716.0,0.33962123]
[1673750463770,0.63889696,20720.0,20716.0,0.33962123]
[1673750464274,0.63889696,20720.0,20717.0,0.32429787]
[1673750464531,0.73243892,20720.0,20717.0,0.32429787]
[1673750464795,0.02301929,20719.0,20714.0,0.85035995]
[1673750465067,0.04992081,20718.0,20715.0,0.31986687]
[1673750465574,0.02301929,20719.0,20715.0,0.31986687]
[1673750465846,0.0729401,20719.0,20715.0,0.31986687]
[1673750466092,0.05,20718.0,20715.0,0.31986687]
[1673750466384,0.570347,20720.0,20714.0,0.482754]
[1673750466623,0.570347,20720.0,20716.0,0.19072595]
[1673750466624,0.0085,20720.0,20716.0,0.19072595]
[1673750466875,0.05,20719.0,20717.0,0.67341795]
[1673750467171,0.05,20719.0,20718.0,0.4]
[1673750467409,0.05,20719.0,20718.0,1.15229795]
[1673750467662,0.28691222,20725.0,20718.0,1.120172]
[1673750467663,0.14346277,20725.0,20718.0,1.120172]
[1673750467920,0.38479771,20726.0,20723.0,0.0792]
[1673750468181,0.02615512,20725.0,20724.0,0.19072595]
[1673750468475,0.02615512,20725.0,20721.0,0.561801]
[1673750468476,0.02269491,20724.0,20721.0,0.561801]
[1673750468970,0.02544605,20722.0,20720.0,0.482621]
[1673750469212,0.07536686,20722.0,20719.0,0.482633]
[1673750469786,0.07536686,20722.0,20721.0,0.001]
[1673750469998,0.02544605,20722.0,20721.0,0.001]
[1673750470519,0.02544605,20722.0,20720.0,0.35533625]
[1673750470771,0.02944605,20722.0,20720.0,0.36133625]
[1673750471025,0.02544605,20722.0,20720.0,0.35533625]
[1673750471284,0.053,20722.0,20721.0,0.56400893]
[1673750471540,0.053,20722.0,20721.0,1.0359742]
[1673750471789,0.057,20722.0,20721.0,1.0359742]
[1673750472534,0.01874082,20724.0,20721.0,1.0359742]
[1673750473305,0.14346277,20725.0,20721.0,1.0359742]
[1673750473570,0.053,20722.0,20721.0,1.22770015]
[1673750473815,0.16432497,20725.0,20721.0,1.0359742]
[1673750474093,0.053,20724.0,20722.0,0.1]
[1673750474324,0.053,20724.0,20723.0,0.96511]
[1673750474578,0.37856634,20726.0,20723.0,0.96511]
[1673750474912,0.16336347,20726.0,20723.0,0.96511]
[1673750475345,0.084,20724.0,20723.0,0.96611]
[1673750476119,0.084,20724.0,20723.0,1.34735112]
[1673750476881,0.16336347,20726.0,20723.0,1.34735112]
[1673750477144,0.17103792,20725.0,20723.0,0.38124112]
[1673750477660,0.084,20724.0,20723.0,0.001]
[1673750477938,0.10405796,20724.0,20723.0,0.001]
[1673750478181,0.10405796,20724.0,20723.0,0.002]
[1673750478433,0.02005796,20724.0,20722.0,0.85975813]
[1673750478954,0.15196277,20725.0,20722.0,0.85975813]
[1673750479237,0.0085,20725.0,20723.0,0.33653656]
[1673750480012,0.0085,20725.0,20724.0,0.3051044]
[1673750480517,0.43786564,20727.0,20724.0,0.3051044]
[1673750480771,0.24806444,20727.0,20724.0,0.49583035]
[1673750481033,0.084,20725.0,20724.0,0.49583035]
[1673750481331,0.16886444,20727.0,20724.0,0.3051044]
[1673750481594,0.084,20725.0,20724.0,0.3061044]
[1673750481862,0.16886444,20727.0,20724.0,0.3051044]
[1673750482348,0.38406731,20727.0,20724.0,0.3051044]
[1673750482642,0.02387427,20726.0,20724.0,0.3051044]
[1673750482899,0.02387427,20726.0,20724.0,0.3061044]
[1673750483163,0.02387427,20726.0,20725.0,0.07886584]
[1673750483418,0.22846277,20727.0,20725.0,0.07886584]
[1673750483667,0.16826175,20727.0,20724.0,0.3051044]
[1673750483935,0.3767125,20726.0,20724.0,0.001]
[1673750484214,0.0001126,20724.0,20721.0,0.29123232]
[1673750484498,0.04992081,20723.0,20721.0,0.29123232]
[1673750484743,0.320935,20722.0,20721.0,0.29123232]
[1673750485002,0.04992081,20722.0,20721.0,0.29123232]
[1673750485306,0.04992081,20722.0,20718.0,0.3104799]
[1673750485307,0.0785,20721.0,20718.0,0.3104799]
[1673750485570,0.37450218,20720.0,20715.0,1.60743593]
[1673750485855,0.04992081,20719.0,20717.0,0.37535219]
[1673750486106,0.087,20720.0,20717.0,0.37535219]
[1673750486361,0.0085,20720.0,20718.0,0.006]
[1673750486632,0.02202222,20721.0,20717.0,0.95804619]
[1673750486886,0.084,20719.0,20717.0,1.04977214]
[1673750487141,0.02202222,20721.0,20717.0,0.85804619]
[1673750487391,0.1435749,20723.0,20718.0,0.001]
[1673750487647,0.03372305,20722.0,20719.0,0.19072595]
[1673750488003,0.03372305,20722.0,20718.0,0.67338595]
[1673750488202,0.0228487,20721.0,20719.0,0.78365762]
[1673750488724,0.04992081,20720.0,20717.0,0.79729137]
[1673750488975,0.04992081,20720.0,20717.0,0.32797071]
[1673750488976,0.12912081,20720.0,20717.0,0.32797071]
[1673750489228,0.12912081,20720.0,20717.0,0.32786811]
[1673750489486,0.0792,20720.0,20717.0,0.32786811]
[1673750490022,0.1752,20720.0,20717.0,0.32786811]
[1673750490278,0.657828,20720.0,20717.0,0.32786811]
[1673750490798,0.657828,20720.0,20715.0,0.7641]
[1673750491059,0.03337739,20719.0,20715.0,1.28399051]
[1673750491316,0.0085,20719.0,20716.0,0.19072595]
[1673750491575,0.096,20720.0,20716.0,1.03679281]
[1673750491854,0.096,20720.0,20717.0,0.1]
[1673750492091,0.02003322,20721.0,20717.0,0.29072595]
[1673750492340,0.005,20720.0,20717.0,0.29072595]
[1673750492595,0.02003322,20721.0,20717.0,0.965361]
[1673750492851,0.07228803,20720.0,20717.0,0.965361]
[1673750493118,0.02482051,20719.0,20716.0,0.85739846]
[1673750493376,0.07474132,20719.0,20717.0,0.32593313]
[1673750493682,0.02482051,20719.0,20717.0,0.32593313]
[1673750494171,0.0792,20720.0,20717.0,0.32593313]
[1673750494455,0.09905309,20720.0,20717.0,0.32593313]
[1673750495453,0.09905309,20720.0,20716.0,0.002]
[1673750495454,0.0869,20719.0,20716.0,0.002]
[1673750495756,0.803607,20718.0,20715.0,0.37786366]
[1673750495969,0.53259281,20718.0,20717.0,0.004]
[1673750496228,0.491172,20718.0,20717.0,0.004]
[1673750496480,0.51230913,20718.0,20717.0,0.004]
[1673750496722,0.51520269,20718.0,20715.0,0.30455017]
[1673750496962,0.0085,20717.0,20715.0,0.33868236]
[1673750497212,0.51325353,20717.0,20715.0,0.33868236]
[1673750497711,0.51325353,20717.0,20715.0,0.30655017]
[1673750497967,0.51325353,20717.0,20715.0,0.30455017]
[1673750498488,0.51325353,20717.0,20714.0,0.0167717]
[1673750498731,0.01964576,20716.0,20715.0,0.004]
[1673750498982,0.02814576,20716.0,20715.0,0.004]
[1673750499749,0.0085,20716.0,20715.0,0.37225269]
[1673750499993,0.02213177,20718.0,20715.0,0.37225269]
[1673750499994,0.0085,20717.0,20715.0,0.37225269]
[1673750500234,0.02213177,20718.0,20715.0,0.37225269]
[1673750500740,0.0784,20719.0,20715.0,0.37225269]
[1673750500986,0.09849181,20719.0,20716.0,0.35198385]
[1673750501491,0.02184109,20718.0,20716.0,0.35198385]
[1673750501754,0.03084109,20718.0,20716.0,0.35198385]
[1673750502003,0.02184109,20718.0,20716.0,0.35198385]
[1673750502252,0.0792,20717.0,20716.0,0.007]
[1673750502493,0.0877,20717.0,20714.0,0.35239967]
[1673750502750,0.0085,20717.0,20716.0,0.007]
[1673750503003,0.0085,20717.0,20716.0,0.38464345]
[1673750503267,0.0085,20717.0,20716.0,0.30908345]
[1673750504072,0.0085,20717.0,20714.0,0.0167717]
[1673750504340,0.07736201,20717.0,20714.0,0.38669738]
[1673750504599,0.07736201,20717.0,20715.0,0.35039168]
[1673750504600,0.0085,20717.0,20715.0,0.35039168]
[1673750505120,0.009,20717.0,20716.0,0.3329585]
[1673750505349,0.02101007,20721.0,20716.0,0.3259585]
[1673750505608,0.02101007,20721.0,20717.0,0.23510877]
[1673750505859,0.02101007,20721.0,20718.0,0.19072595]
[1673750506124,0.43777665,20723.0,20718.0,0.19072595]
[1673750506424,0.43777665,20723.0,20719.0,0.19072595]
[1673750506682,0.027786,20722.0,20720.0,0.19072595]
[1673750506938,0.027786,20722.0,20721.0,0.03814519]
[1673750507447,0.348721,20722.0,20721.0,0.03814519]
[1673750507705,0.027786,20722.0,20721.0,0.03814519]
[1673750507971,0.019286,20722.0,20721.0,0.03814519]
[1673750508478,0.10448941,20723.0,20721.0,0.03814519]
[1673750508730,0.10448941,20723.0,20721.0,0.43528455]
[1673750509000,0.10448941,20723.0,20721.0,0.39713936]
[1673750509249,0.0085,20722.0,20718.0,0.482649]
[1673750509510,0.18322227,20722.0,20721.0,0.007]
[1673750509766,0.1590749,20722.0,20720.0,0.34354909]
[1673750510025,0.007,20722.0,20721.0,0.3490895]
[1673750510294,0.0792,20723.0,20721.0,0.3420895]
[1673750510541,0.007,20722.0,20721.0,0.30773459]
[1673750511100,0.03733428,20722.0,20720.0,0.007]
[1673750512059,0.16690918,20722.0,20719.0,0.38484918]
[1673750512296,0.17390918,20722.0,20721.0,0.007]
[1673750512589,0.17390918,20722.0,20719.0,0.38484918]
[1673750512846,0.18090918,20722.0,20720.0,0.007]
[1673750513087,0.16690918,20722.0,20719.0,0.38484918]
[1673750513343,0.03606211,20721.0,20719.0,0.39184918]
[1673750513850,0.03606211,20721.0,20719.0,0.007]
[1673750515344,0.03606211,20721.0,20718.0,0.31796963]
[1673750515602,0.04306211,20721.0,20719.0,0.007]
[1673750515848,0.0155,20721.0,20719.0,0.007]
[1673750516101,0.007,20721.0,20720.0,0.35158592]
[1673750516622,0.16579579,20724.0,20720.0,0.83421092]
[1673750516870,0.007,20721.0,20720.0,1.02493687]
[1673750517122,0.007,20721.0,20720.0,0.83421092]
[1673750517385,0.16579579,20724.0,20720.0,0.83421092]